[Event "Titled Tuesday Blitz May 9 Early 2023"]
[White "Mayaud, Raphael"]
[Black "Staudenhocker43"]
[WhiteFideId "627151"]
[WhiteElo "2191"]
[BlackElo "2491"]
[Result "1/2-1/2"]
[Round "02"]
[TimeControl "180+2"]
[Date "2023.05.09"]
[WhiteClock "0:02:10"]
[BlackClock "0:01:59"]

1. d4 {[%clk 0:03:00]}  d5 {[%clk 0:02:58]} 2. c4 {[%clk 0:02:59]}  c6 {[%clk 0:02:59]} 3. Nf3 {[%clk 0:02:59]}  Nf6 {[%clk 0:02:59]} 4. g3 {[%clk 0:02:58]}  Bg4 {[%clk 0:02:58]} 5. Bg2 {[%clk 0:02:53]}  e6 {[%clk 0:02:57]} 6. Qb3 {[%clk 0:02:49]}  Qb6 {[%clk 0:02:55]} 7. c5 {[%clk 0:02:47]}  Qxb3 {[%clk 0:02:44]} 8. axb3 {[%clk 0:02:48]}  Na6 {[%clk 0:02:44]} 9. O-O {[%clk 0:02:44]}  Nb4 {[%clk 0:02:34]} 10. Rd1 {[%clk 0:02:31]}  Bf5 {[%clk 0:02:22]} 11. Na3 {[%clk 0:02:15]}  Nc2 {[%clk 0:02:12]} 12. Ra2 {[%clk 0:02:10]}  Nb4 {[%clk 0:02:08]} 13. Ra1 {[%clk 0:02:10]}  Nc2 {[%clk 0:02:08]} 14. Ra2 {[%clk 0:02:10]}  Nb4 {[%clk 0:01:59]} 15. Ra1 {[%clk 0:02:10]} 1/2-1/2


[Site "https://www.chess.com"]

[Event "Titled Tuesday Blitz May 9 Early 2023"]
[White "Shukhman, Anna"]
[Black "Mike24147"]
[WhiteFideId "54180058"]
[WhiteElo "2235"]
[BlackElo "2299"]
[Result "0-1"]
[Round "02"]
[TimeControl "180+2"]
[Date "2023.05.09"]
[WhiteClock "0:00:20"]
[BlackClock "0:00:16"]

1. e4 {[%clk 0:03:00]}  c5 {[%clk 0:02:59]} 2. Nf3 {[%clk 0:03:00]}  e6 {[%clk 0:02:59]} 3. d4 {[%clk 0:03:00]}  cxd4 {[%clk 0:02:59]} 4. Nxd4 {[%clk 0:03:01]}  Nf6 {[%clk 0:03:00]} 5. Nc3 {[%clk 0:03:02]}  Nc6 {[%clk 0:03:00]} 6. Nxc6 {[%clk 0:03:02]}  bxc6 {[%clk 0:03:00]} 7. e5 {[%clk 0:03:02]}  Nd5 {[%clk 0:03:00]} 8. Ne4 {[%clk 0:03:03]}  Qc7 {[%clk 0:02:59]} 9. f4 {[%clk 0:03:03]}  Qb6 {[%clk 0:02:58]} 10. c4 {[%clk 0:03:02]}  Bb4+ {[%clk 0:02:58]} 11. Ke2 {[%clk 0:03:03]}  f5 {[%clk 0:02:55]} 12. exf6 {[%clk 0:03:03]}  Nxf6 {[%clk 0:02:55]} 13. Be3 {[%clk 0:03:03]}  Qc7 {[%clk 0:02:44]} 14. Nxf6+ {[%clk 0:02:59]}  gxf6 {[%clk 0:02:44]} 15. c5 {[%clk 0:02:58]}  d6 {[%clk 0:02:29]} 16. Kf2 {[%clk 0:02:37]}  Bxc5 {[%clk 0:02:20]} 17. Bxc5 {[%clk 0:02:33]}  dxc5 {[%clk 0:02:21]} 18. Qh5+ {[%clk 0:02:33]}  Ke7 {[%clk 0:01:56]} 19. Qxc5+ {[%clk 0:02:31]}  Qd6 {[%clk 0:01:57]} 20. Rc1 {[%clk 0:02:23]}  Qxc5+ {[%clk 0:01:50]} 21. Rxc5 {[%clk 0:02:24]}  Rb8 {[%clk 0:01:50]} 22. b3 {[%clk 0:02:19]}  Kd6 {[%clk 0:01:47]} 23. Ra5 {[%clk 0:02:17]}  a6 {[%clk 0:01:34]} 24. Bc4 {[%clk 0:02:05]}  Re8 {[%clk 0:01:16]} 25. Rd1+ {[%clk 0:02:03]}  Kc7 {[%clk 0:01:16]} 26. Rh5 {[%clk 0:01:59]}  Re7 {[%clk 0:01:15]} 27. Bd3 {[%clk 0:01:51]}  e5 {[%clk 0:01:11]} 28. fxe5 {[%clk 0:01:35]}  Bg4 {[%clk 0:01:06]} 29. exf6 {[%clk 0:00:56]}  Bxh5 {[%clk 0:01:05]} 30. g4 {[%clk 0:00:55]}  Bxg4 {[%clk 0:00:59]} 31. Rg1 {[%clk 0:00:54]}  Rd7 {[%clk 0:00:52]} 32. Be4 {[%clk 0:00:51]}  Be6 {[%clk 0:00:45]} 33. Ke3 {[%clk 0:00:43]}  Rf8 {[%clk 0:00:44]} 34. Rf1 {[%clk 0:00:36]}  Bd5 {[%clk 0:00:43]} 35. Bd3 {[%clk 0:00:34]}  Rdf7 {[%clk 0:00:43]} 36. Kd4 {[%clk 0:00:33]}  Rxf6 {[%clk 0:00:42]} 37. Rg1 {[%clk 0:00:33]}  R8f7 {[%clk 0:00:40]} 38. Kc5 {[%clk 0:00:32]}  Rf3 {[%clk 0:00:26]} 39. Bxa6 {[%clk 0:00:31]}  Rc3+ {[%clk 0:00:21]} 40. Kd4 {[%clk 0:00:31]}  Rc2 {[%clk 0:00:21]} 41. Bd3 {[%clk 0:00:22]}  Rxa2 {[%clk 0:00:21]} 42. b4 {[%clk 0:00:17]}  Rxh2 {[%clk 0:00:21]} 43. Kc5 {[%clk 0:00:17]}  Rh3 {[%clk 0:00:20]} 44. Be2 {[%clk 0:00:15]}  Rc3+ {[%clk 0:00:20]} 45. Kd4 {[%clk 0:00:15]}  Rc2 {[%clk 0:00:21]} 46. Ra1 {[%clk 0:00:15]}  Rxe2 {[%clk 0:00:20]} 47. Ra7+ {[%clk 0:00:14]}  Kb6 {[%clk 0:00:21]} 48. Ra8 {[%clk 0:00:14]}  Re4+ {[%clk 0:00:21]} 49. Kd3 {[%clk 0:00:14]}  Rxb4 {[%clk 0:00:21]} 50. Rb8+ {[%clk 0:00:14]}  Kc5 {[%clk 0:00:22]} 51. Re8 {[%clk 0:00:14]}  Rf3+ {[%clk 0:00:21]} 52. Kc2 {[%clk 0:00:14]}  Rg4 {[%clk 0:00:20]} 53. Re2 {[%clk 0:00:13]}  Rh3 {[%clk 0:00:15]} 54. Rf2 {[%clk 0:00:13]}  Rg2 {[%clk 0:00:15]} 55. Rxg2 {[%clk 0:00:13]}  Bxg2 {[%clk 0:00:16]} 56. Kd2 {[%clk 0:00:14]}  Bd5 {[%clk 0:00:17]} 57. Ke2 {[%clk 0:00:15]}  h5 {[%clk 0:00:17]} 58. Kf2 {[%clk 0:00:16]}  Rf3+ {[%clk 0:00:17]} 59. Kg1 {[%clk 0:00:17]}  h4 {[%clk 0:00:17]} 60. Kh2 {[%clk 0:00:18]}  Ra3 {[%clk 0:00:16]} 61. Kg1 {[%clk 0:00:18]}  Ra2 {[%clk 0:00:15]} 62. Kf1 {[%clk 0:00:18]}  h3 {[%clk 0:00:16]} 63. Ke1 {[%clk 0:00:19]}  h2 {[%clk 0:00:15]} 64. Kd1 {[%clk 0:00:20]}  h1=Q# {[%clk 0:00:16]} 0-1


[Site "https://www.chess.com"]

[Event "Titled Tuesday Blitz May 9 Early 2023"]
[White "Hossain, Enamul"]
[Black "Maung, Maung Kyaw Zaw Hein"]
[WhiteFideId "10200649"]
[BlackFideId "13001698"]
[WhiteElo "2433"]
[BlackElo "2019"]
[Result "1-0"]
[Round "02"]
[TimeControl "180+2"]
[Date "2023.05.09"]
[WhiteClock "0:00:53"]
[BlackClock "0:00:16"]

1. e4 {[%clk 0:02:53]}  c6 {[%clk 0:03:00]} 2. d4 {[%clk 0:02:53]}  d5 {[%clk 0:03:01]} 3. e5 {[%clk 0:02:53]}  Bf5 {[%clk 0:02:58]} 4. Nd2 {[%clk 0:02:53]}  e6 {[%clk 0:02:57]} 5. Nb3 {[%clk 0:02:52]}  Nd7 {[%clk 0:02:55]} 6. Nf3 {[%clk 0:02:52]}  a6 {[%clk 0:02:55]} 7. Be2 {[%clk 0:02:44]}  c5 {[%clk 0:02:52]} 8. dxc5 {[%clk 0:02:43]}  Nxc5 {[%clk 0:02:51]} 9. O-O {[%clk 0:02:32]}  Nxb3 {[%clk 0:02:48]} 10. axb3 {[%clk 0:02:32]}  Bc5 {[%clk 0:02:49]} 11. Nd4 {[%clk 0:02:27]}  Bg6 {[%clk 0:02:34]} 12. c3 {[%clk 0:02:25]}  Ne7 {[%clk 0:02:33]} 13. b4 {[%clk 0:02:23]}  Bb6 {[%clk 0:02:30]} 14. Be3 {[%clk 0:02:18]}  O-O {[%clk 0:02:29]} 15. f4 {[%clk 0:02:17]}  Nf5 {[%clk 0:02:20]} 16. Nxf5 {[%clk 0:02:14]}  Bxf5 {[%clk 0:02:19]} 17. Bd4 {[%clk 0:02:13]}  Be4 {[%clk 0:02:09]} 18. Bf3 {[%clk 0:02:09]}  Bxf3 {[%clk 0:02:05]} 19. Rxf3 {[%clk 0:02:09]}  Rc8 {[%clk 0:02:02]} 20. Kh1 {[%clk 0:01:59]}  Bxd4 {[%clk 0:02:00]} 21. Qxd4 {[%clk 0:01:58]}  Rc4 {[%clk 0:01:58]} 22. Qd3 {[%clk 0:01:57]}  Qb6 {[%clk 0:01:43]} 23. f5 {[%clk 0:01:54]}  Re4 {[%clk 0:01:41]} 24. f6 {[%clk 0:01:46]}  g6 {[%clk 0:01:11]} 25. Qd2 {[%clk 0:01:40]}  Rh4 {[%clk 0:01:08]} 26. Rf4 {[%clk 0:01:38]}  Rh5 {[%clk 0:01:01]} 27. Re1 {[%clk 0:01:37]}  Rc8 {[%clk 0:00:59]} 28. Rd4 {[%clk 0:01:26]}  Qc7 {[%clk 0:00:53]} 29. Qe3 {[%clk 0:01:26]}  h6 {[%clk 0:00:49]} 30. g4 {[%clk 0:01:23]}  Rh4 {[%clk 0:00:48]} 31. g5 {[%clk 0:01:16]}  Rxd4 {[%clk 0:00:43]} 32. Qxd4 {[%clk 0:01:13]}  h5 {[%clk 0:00:42]} 33. b5 {[%clk 0:01:09]}  axb5 {[%clk 0:00:28]} 34. Ra1 {[%clk 0:01:08]}  Qc4 {[%clk 0:00:25]} 35. Ra7 {[%clk 0:01:03]}  Qxd4 {[%clk 0:00:25]} 36. cxd4 {[%clk 0:01:02]}  Rc7 {[%clk 0:00:19]} 37. Ra8+ {[%clk 0:00:58]}  Kh7 {[%clk 0:00:19]} 38. Rf8 {[%clk 0:00:57]}  b4 {[%clk 0:00:17]} 39. b3 {[%clk 0:00:56]}  Rd7 {[%clk 0:00:16]} 40. h4 {[%clk 0:00:55]}  Rc7 {[%clk 0:00:16]} 41. Kg2 {[%clk 0:00:54]}  Rd7 {[%clk 0:00:17]} 42. Kf3 {[%clk 0:00:54]}  Rc7 {[%clk 0:00:17]} 43. Ke3 {[%clk 0:00:54]}  Rd7 {[%clk 0:00:18]} 44. Ke2 {[%clk 0:00:54]}  Rc7 {[%clk 0:00:18]} 45. Kd2 {[%clk 0:00:54]}  Rd7 {[%clk 0:00:19]} 46. Re8 {[%clk 0:00:54]}  Rc7 {[%clk 0:00:19]} 47. Re7 {[%clk 0:00:55]}  Rc3 {[%clk 0:00:17]} 48. Rxf7+ {[%clk 0:00:55]}  Kg8 {[%clk 0:00:17]} 49. Rg7+ {[%clk 0:00:55]}  Kf8 {[%clk 0:00:18]} 50. Rxg6 {[%clk 0:00:56]}  Rxb3 {[%clk 0:00:19]} 51. Rh6 {[%clk 0:00:54]}  Rh3 {[%clk 0:00:17]} 52. g6 {[%clk 0:00:54]}  Rh2+ {[%clk 0:00:16]} 53. Kc1 {[%clk 0:00:54]}  b3 {[%clk 0:00:16]} 54. Rh8# {[%clk 0:00:53]} 1-0


[Site "https://www.chess.com"]

[Event "Titled Tuesday Blitz May 9 Early 2023"]
[White "Zavortink, Matt"]
[Black "Nastase, Robert-Paul"]
[WhiteFideId "2034263"]
[BlackFideId "1221175"]
[WhiteElo "2484"]
[BlackElo "2175"]
[Result "1-0"]
[Round "02"]
[TimeControl "180+2"]
[Date "2023.05.09"]
[WhiteClock "0:00:14"]
[BlackClock "0:00:00"]

1. Nf3 {[%clk 0:02:57]}  d5 {[%clk 0:02:55]} 2. g3 {[%clk 0:02:57]}  Nf6 {[%clk 0:02:53]} 3. Bg2 {[%clk 0:02:57]}  e6 {[%clk 0:02:48]} 4. O-O {[%clk 0:02:56]}  Be7 {[%clk 0:02:17]} 5. a4 {[%clk 0:02:56]}  O-O {[%clk 0:02:11]} 6. d3 {[%clk 0:02:56]}  b6 {[%clk 0:02:05]} 7. e4 {[%clk 0:02:51]}  dxe4 {[%clk 0:01:47]} 8. Ng5 {[%clk 0:02:46]}  Bb7 {[%clk 0:01:40]} 9. Nc3 {[%clk 0:02:43]}  Nbd7 {[%clk 0:01:26]} 10. Ngxe4 {[%clk 0:02:21]}  Nd5 {[%clk 0:01:16]} 11. a5 {[%clk 0:02:01]}  Qc8 {[%clk 0:00:38]} 12. Re1 {[%clk 0:01:53]}  Nxc3 {[%clk 0:00:35]} 13. bxc3 {[%clk 0:01:51]}  Nf6 {[%clk 0:00:34]} 14. Bb2 {[%clk 0:01:45]}  Nxe4 {[%clk 0:00:31]} 15. Bxe4 {[%clk 0:01:43]}  Bxe4 {[%clk 0:00:30]} 16. Rxe4 {[%clk 0:01:44]}  Qd7 {[%clk 0:00:28]} 17. c4 {[%clk 0:01:41]}  Rfd8 {[%clk 0:00:23]} 18. Qh5 {[%clk 0:01:32]}  f5 {[%clk 0:00:08]} 19. Re2 {[%clk 0:01:23]}  Bf8 {[%clk 0:00:08]} 20. Qf3 {[%clk 0:01:08]}  Re8 {[%clk 0:00:07]} 21. h4 {[%clk 0:01:03]}  Rab8 {[%clk 0:00:06]} 22. axb6 {[%clk 0:00:59]}  axb6 {[%clk 0:00:06]} 23. Be5 {[%clk 0:00:56]}  Rbd8 {[%clk 0:00:06]} 24. Ra7 {[%clk 0:00:54]}  Rc8 {[%clk 0:00:06]} 25. h5 {[%clk 0:00:54]}  Bd6 {[%clk 0:00:06]} 26. Ra1 {[%clk 0:00:47]}  Bxe5 {[%clk 0:00:06]} 27. Rxe5 {[%clk 0:00:48]}  Qd6 {[%clk 0:00:05]} 28. Rae1 {[%clk 0:00:47]}  Re7 {[%clk 0:00:06]} 29. h6 {[%clk 0:00:46]}  g6 {[%clk 0:00:06]} 30. Qe3 {[%clk 0:00:40]}  Rce8 {[%clk 0:00:05]} 31. Qd2 {[%clk 0:00:32]}  Qd4 {[%clk 0:00:04]} 32. R1e3 {[%clk 0:00:26]}  c5 {[%clk 0:00:03]} 33. Qe1 {[%clk 0:00:21]}  Kf7 {[%clk 0:00:02]} 34. c3 {[%clk 0:00:19]}  Qd6 {[%clk 0:00:02]} 35. Qb1 {[%clk 0:00:18]}  Qd7 {[%clk 0:00:02]} 36. Qxb6 {[%clk 0:00:18]}  Qc8 {[%clk 0:00:02]} 37. Kh2 {[%clk 0:00:16]}  Qa8 {[%clk 0:00:02]} 38. Qxc5 {[%clk 0:00:14]}  Qa2 {[%clk 0:00:02]} 39. Re2 {[%clk 0:00:14]}  Qb1 {[%clk 0:00:01]} 40. Qe3 {[%clk 0:00:14]}  Qc1 {[%clk 0:00:00]} 41. Qxc1 {[%clk 0:00:14]} 1-0


[Site "https://www.chess.com"]

[Event "Titled Tuesday Blitz May 9 Early 2023"]
[White "Bueno, Alfeu Junior Varela"]
[Black "ElenGajger"]
[WhiteFideId "2108879"]
[WhiteElo "2175"]
[BlackElo "2479"]
[Result "0-1"]
[Round "02"]
[TimeControl "180+2"]
[Date "2023.05.09"]
[WhiteClock "0:00:00"]
[BlackClock "0:01:00"]

1. e4 {[%clk 0:02:50]}  c5 {[%clk 0:02:59]} 2. Nc3 {[%clk 0:02:50]}  Nc6 {[%clk 0:02:59]} 3. f4 {[%clk 0:02:50]}  g6 {[%clk 0:02:59]} 4. Nf3 {[%clk 0:02:51]}  Bg7 {[%clk 0:02:59]} 5. Bb5 {[%clk 0:02:52]}  Nd4 {[%clk 0:02:59]} 6. O-O {[%clk 0:02:52]}  a6 {[%clk 0:02:54]} 7. Bc4 {[%clk 0:02:52]}  e6 {[%clk 0:02:53]} 8. d3 {[%clk 0:02:52]}  Ne7 {[%clk 0:02:53]} 9. Nxd4 {[%clk 0:02:52]}  cxd4 {[%clk 0:02:53]} 10. Ne2 {[%clk 0:02:53]}  d5 {[%clk 0:02:49]} 11. Bb3 {[%clk 0:02:52]}  dxe4 {[%clk 0:02:48]} 12. dxe4 {[%clk 0:02:53]}  O-O {[%clk 0:02:48]} 13. Ng3 {[%clk 0:02:54]}  Kh8 {[%clk 0:02:40]} 14. Qe1 {[%clk 0:02:40]}  a5 {[%clk 0:02:32]} 15. a4 {[%clk 0:02:39]}  d3 {[%clk 0:02:32]} 16. Kh1 {[%clk 0:02:19]}  Nc6 {[%clk 0:02:24]} 17. cxd3 {[%clk 0:02:10]}  Qxd3 {[%clk 0:02:19]} 18. Rf3 {[%clk 0:02:10]}  Qd8 {[%clk 0:02:12]} 19. Bd2 {[%clk 0:02:10]}  Nd4 {[%clk 0:02:12]} 20. Rd3 {[%clk 0:02:07]}  Qh4 {[%clk 0:02:07]} 21. Rc1 {[%clk 0:01:31]}  b6 {[%clk 0:02:04]} 22. Be3 {[%clk 0:01:23]}  Nxb3 {[%clk 0:01:43]} 23. Rxb3 {[%clk 0:01:24]}  Bd7 {[%clk 0:01:42]} 24. Rxb6 {[%clk 0:01:10]}  Bxa4 {[%clk 0:01:41]} 25. e5 {[%clk 0:01:10]}  Rfd8 {[%clk 0:01:25]} 26. Ne4 {[%clk 0:01:08]}  Qxe1+ {[%clk 0:01:22]} 27. Rxe1 {[%clk 0:01:09]}  Rab8 {[%clk 0:01:16]} 28. Nd6 {[%clk 0:01:08]}  Rxb6 {[%clk 0:01:13]} 29. Bxb6 {[%clk 0:01:09]}  Rb8 {[%clk 0:01:14]} 30. Bxa5 {[%clk 0:00:48]}  Rxb2 {[%clk 0:01:11]} 31. Nxf7+ {[%clk 0:00:43]}  Kg8 {[%clk 0:01:10]} 32. Ng5 {[%clk 0:00:43]}  Bc6 {[%clk 0:01:09]} 33. Ne4 {[%clk 0:00:32]}  Bh6 {[%clk 0:01:03]} 34. Nf6+ {[%clk 0:00:14]}  Kf7 {[%clk 0:01:02]} 35. Rg1 {[%clk 0:00:00]}  Bxf4 {[%clk 0:01:00]} 0-1


[Site "https://www.chess.com"]

[Event "Titled Tuesday Blitz May 9 Early 2023"]
[White "Rodriguez, Santiago"]
[Black "Thomas, Anysia"]
[WhiteFideId "3000591"]
[BlackFideId "670472"]
[WhiteElo "2249"]
[BlackElo "2091"]
[Result "1-0"]
[Round "02"]
[TimeControl "180+2"]
[Date "2023.05.09"]
[WhiteClock "0:01:19"]
[BlackClock "0:00:01"]

1. d4 {[%clk 0:03:00]}  Nf6 {[%clk 0:02:58]} 2. Bg5 {[%clk 0:03:00]}  d5 {[%clk 0:02:57]} 3. Bxf6 {[%clk 0:03:00]}  exf6 {[%clk 0:02:57]} 4. e3 {[%clk 0:03:00]}  c5 {[%clk 0:02:57]} 5. dxc5 {[%clk 0:02:59]}  Bxc5 {[%clk 0:02:55]} 6. c3 {[%clk 0:03:00]}  Nc6 {[%clk 0:02:55]} 7. Nf3 {[%clk 0:03:00]}  O-O {[%clk 0:02:55]} 8. Nbd2 {[%clk 0:03:00]}  f5 {[%clk 0:02:56]} 9. Be2 {[%clk 0:02:57]}  f4 {[%clk 0:02:56]} 10. exf4 {[%clk 0:02:56]}  d4 {[%clk 0:02:56]} 11. Nb3 {[%clk 0:02:52]}  Bd6 {[%clk 0:02:47]} 12. Nbxd4 {[%clk 0:02:50]}  Nxd4 {[%clk 0:02:42]} 13. Qxd4 {[%clk 0:02:47]}  Qc7 {[%clk 0:02:40]} 14. Ne5 {[%clk 0:02:40]}  Be6 {[%clk 0:02:36]} 15. O-O {[%clk 0:02:37]}  Rad8 {[%clk 0:02:33]} 16. Bf3 {[%clk 0:02:35]}  f6 {[%clk 0:02:24]} 17. Nd3 {[%clk 0:02:34]}  b6 {[%clk 0:01:40]} 18. Rfe1 {[%clk 0:02:30]}  Bc5 {[%clk 0:01:38]} 19. Nxc5 {[%clk 0:02:29]}  bxc5 {[%clk 0:01:30]} 20. Qe3 {[%clk 0:02:25]}  Bf7 {[%clk 0:01:30]} 21. Rad1 {[%clk 0:02:22]}  Rde8 {[%clk 0:01:28]} 22. Qd3 {[%clk 0:02:13]}  Qxf4 {[%clk 0:01:27]} 23. Bd5 {[%clk 0:02:07]}  Rxe1+ {[%clk 0:01:04]} 24. Rxe1 {[%clk 0:02:06]}  g6 {[%clk 0:00:57]} 25. g3 {[%clk 0:02:05]}  Qg5 {[%clk 0:00:48]} 26. Bxf7+ {[%clk 0:02:04]}  Rxf7 {[%clk 0:00:48]} 27. h4 {[%clk 0:01:58]}  Qg4 {[%clk 0:00:45]} 28. Re8+ {[%clk 0:01:57]}  Kg7 {[%clk 0:00:45]} 29. Qd8 {[%clk 0:01:57]}  Rd7 {[%clk 0:00:29]} 30. Re7+ {[%clk 0:01:47]}  Rxe7 {[%clk 0:00:29]} 31. Qxe7+ {[%clk 0:01:48]}  Kg8 {[%clk 0:00:27]} 32. Qxc5 {[%clk 0:01:47]}  Qf3 {[%clk 0:00:19]} 33. Qxa7 {[%clk 0:01:41]}  Qd1+ {[%clk 0:00:19]} 34. Kh2 {[%clk 0:01:39]}  Qe2 {[%clk 0:00:18]} 35. b4 {[%clk 0:01:38]}  g5 {[%clk 0:00:17]} 36. Qb8+ {[%clk 0:01:31]}  Kg7 {[%clk 0:00:17]} 37. Qc7+ {[%clk 0:01:31]}  Kg8 {[%clk 0:00:17]} 38. Qd8+ {[%clk 0:01:26]}  Kg7 {[%clk 0:00:17]} 39. Qd4 {[%clk 0:01:26]}  gxh4 {[%clk 0:00:16]} 40. gxh4 {[%clk 0:01:27]}  h5 {[%clk 0:00:14]} 41. b5 {[%clk 0:01:26]}  Qxa2 {[%clk 0:00:14]} 42. b6 {[%clk 0:01:26]}  Qb2 {[%clk 0:00:13]} 43. Kg3 {[%clk 0:01:23]}  Kg6 {[%clk 0:00:12]} 44. Qe4+ {[%clk 0:01:21]}  Kg7 {[%clk 0:00:11]} 45. b7 {[%clk 0:01:21]}  f5 {[%clk 0:00:01]} 46. Qe5+ {[%clk 0:01:19]} 1-0


[Site "https://www.chess.com"]

[Event "Titled Tuesday Blitz May 9 Early 2023"]
[White "Sarkar, Justin"]
[Black "WindWhistler11"]
[WhiteFideId "2010011"]
[WhiteElo "2168"]
[BlackElo "2478"]
[Result "1-0"]
[Round "02"]
[TimeControl "180+2"]
[Date "2023.05.09"]
[WhiteClock "0:01:42"]
[BlackClock "0:00:00"]

1. h3 {[%clk 0:02:52]}  Nf6 {[%clk 0:02:57]} 2. c4 {[%clk 0:02:47]}  g6 {[%clk 0:02:57]} 3. Nc3 {[%clk 0:02:45]}  d5 {[%clk 0:02:57]} 4. cxd5 {[%clk 0:02:43]}  Nxd5 {[%clk 0:02:57]} 5. e4 {[%clk 0:02:40]}  Nb6 {[%clk 0:02:54]} 6. d4 {[%clk 0:02:38]}  Bg7 {[%clk 0:02:53]} 7. Nf3 {[%clk 0:02:37]}  O-O {[%clk 0:02:50]} 8. Be3 {[%clk 0:02:31]}  Nc6 {[%clk 0:02:41]} 9. Bb5 {[%clk 0:02:24]}  Na5 {[%clk 0:02:38]} 10. O-O {[%clk 0:02:10]}  Nac4 {[%clk 0:02:34]} 11. Bc1 {[%clk 0:02:08]}  a6 {[%clk 0:02:31]} 12. Bxc4 {[%clk 0:02:03]}  Nxc4 {[%clk 0:02:32]} 13. Qe2 {[%clk 0:02:03]}  b5 {[%clk 0:02:26]} 14. Bf4 {[%clk 0:01:55]}  Bb7 {[%clk 0:02:21]} 15. Rac1 {[%clk 0:01:53]}  Rc8 {[%clk 0:02:08]} 16. Rfd1 {[%clk 0:01:49]}  e6 {[%clk 0:01:55]} 17. b3 {[%clk 0:01:46]}  Nd6 {[%clk 0:00:00]} 18. Qe3 {[%clk 0:01:42]} 1-0


[Site "https://www.chess.com"]

[Event "Titled Tuesday Blitz May 9 Early 2023"]
[White "Arat, Ufuk Sezen"]
[Black "Barbot, Pierre"]
[WhiteFideId "6309089"]
[BlackFideId "663727"]
[WhiteElo "2289"]
[BlackElo "2431"]
[Result "0-1"]
[Round "02"]
[TimeControl "180+2"]
[Date "2023.05.09"]
[WhiteClock "0:01:38"]
[BlackClock "0:00:12"]

1. e4 {[%clk 0:03:00]}  c6 {[%clk 0:02:59]} 2. d4 {[%clk 0:03:00]}  d5 {[%clk 0:02:59]} 3. e5 {[%clk 0:03:01]}  Bf5 {[%clk 0:02:59]} 4. h4 {[%clk 0:03:01]}  h5 {[%clk 0:02:56]} 5. Bd3 {[%clk 0:03:02]}  Bxd3 {[%clk 0:02:55]} 6. Qxd3 {[%clk 0:03:02]}  e6 {[%clk 0:02:53]} 7. Bg5 {[%clk 0:03:03]}  Qa5+ {[%clk 0:02:44]} 8. Nd2 {[%clk 0:03:03]}  c5 {[%clk 0:02:36]} 9. c4 {[%clk 0:03:01]}  Nc6 {[%clk 0:02:15]} 10. Nf3 {[%clk 0:03:01]}  cxd4 {[%clk 0:02:02]} 11. O-O {[%clk 0:03:00]}  Nh6 {[%clk 0:01:45]} 12. cxd5 {[%clk 0:02:41]}  Qxd5 {[%clk 0:01:41]} 13. Nc4 {[%clk 0:02:35]}  Nf5 {[%clk 0:01:28]} 14. Nfd2 {[%clk 0:02:15]}  Nxe5 {[%clk 0:01:01]} 15. Nxe5 {[%clk 0:02:15]}  Qxe5 {[%clk 0:01:02]} 16. Nc4 {[%clk 0:02:14]}  Qd5 {[%clk 0:00:56]} 17. Rfe1 {[%clk 0:02:14]}  Bd6 {[%clk 0:00:47]} 18. Nxd6+ {[%clk 0:02:13]}  Nxd6 {[%clk 0:00:42]} 19. Rad1 {[%clk 0:02:05]}  Nf5 {[%clk 0:00:20]} 20. Qa3 {[%clk 0:01:57]}  f6 {[%clk 0:00:15]} 21. Bf4 {[%clk 0:01:52]}  e5 {[%clk 0:00:16]} 22. Qd3 {[%clk 0:01:39]}  Nxh4 {[%clk 0:00:14]} 23. Bg3 {[%clk 0:01:38]}  Qxg2# {[%clk 0:00:12]} 0-1


[Site "https://www.chess.com"]

[Event "Titled Tuesday Blitz May 9 Early 2023"]
[White "Przybylski, Wojciech"]
[Black "Abrosimov, Vladimir"]
[WhiteFideId "1117599"]
[BlackFideId "4166892"]
[WhiteElo "2222"]
[BlackElo "2336"]
[Result "0-1"]
[Round "02"]
[TimeControl "180+2"]
[Date "2023.05.09"]
[WhiteClock "0:00:06"]
[BlackClock "0:00:18"]

1. e4 {[%clk 0:02:59]}  c5 {[%clk 0:02:59]} 2. Nf3 {[%clk 0:02:59]}  d6 {[%clk 0:02:58]} 3. Nc3 {[%clk 0:02:59]}  Nf6 {[%clk 0:02:57]} 4. g3 {[%clk 0:02:59]}  e6 {[%clk 0:02:57]} 5. Bg2 {[%clk 0:02:58]}  Be7 {[%clk 0:02:58]} 6. O-O {[%clk 0:02:58]}  O-O {[%clk 0:02:58]} 7. a4 {[%clk 0:02:59]}  Nc6 {[%clk 0:02:58]} 8. d3 {[%clk 0:02:58]}  a6 {[%clk 0:02:58]} 9. h3 {[%clk 0:02:58]}  Qc7 {[%clk 0:02:58]} 10. Nh2 {[%clk 0:02:57]}  d5 {[%clk 0:02:58]} 11. f4 {[%clk 0:02:55]}  dxe4 {[%clk 0:02:56]} 12. dxe4 {[%clk 0:02:54]}  b6 {[%clk 0:02:50]} 13. g4 {[%clk 0:02:52]}  Bb7 {[%clk 0:02:50]} 14. g5 {[%clk 0:02:52]}  Rad8 {[%clk 0:02:48]} 15. Qe1 {[%clk 0:02:51]}  Ne8 {[%clk 0:02:45]} 16. Be3 {[%clk 0:02:45]}  Nd6 {[%clk 0:02:42]} 17. b3 {[%clk 0:02:43]}  Nd4 {[%clk 0:02:35]} 18. Rc1 {[%clk 0:02:34]}  b5 {[%clk 0:02:27]} 19. Ng4 {[%clk 0:02:27]}  b4 {[%clk 0:02:25]} 20. Ne2 {[%clk 0:02:20]}  Bxe4 {[%clk 0:02:22]} 21. Bxe4 {[%clk 0:02:06]}  Nxe4 {[%clk 0:02:20]} 22. Bxd4 {[%clk 0:01:55]}  cxd4 {[%clk 0:02:19]} 23. Rf3 {[%clk 0:01:47]}  Nc3 {[%clk 0:02:16]} 24. Ng3 {[%clk 0:01:40]}  Na2 {[%clk 0:02:05]} 25. Ra1 {[%clk 0:01:39]}  Nc3 {[%clk 0:01:58]} 26. Nh5 {[%clk 0:01:24]}  Qc5 {[%clk 0:01:44]} 27. Nhf6+ {[%clk 0:00:55]}  Bxf6 {[%clk 0:01:27]} 28. gxf6 {[%clk 0:00:54]}  d3+ {[%clk 0:01:20]} 29. Ne3 {[%clk 0:00:37]}  d2 {[%clk 0:01:06]} 30. Qg3 {[%clk 0:00:35]}  d1=Q+ {[%clk 0:01:03]} 31. Kh2 {[%clk 0:00:26]}  Qd2+ {[%clk 0:00:52]} 32. Rf2 {[%clk 0:00:23]}  g6 {[%clk 0:00:39]} 33. Ng4 {[%clk 0:00:16]}  Ne4 {[%clk 0:00:33]} 34. Qh4 {[%clk 0:00:15]}  Qdxf2+ {[%clk 0:00:27]} 35. Nxf2 {[%clk 0:00:14]}  Qxf2+ {[%clk 0:00:26]} 36. Qxf2 {[%clk 0:00:14]}  Nxf2 {[%clk 0:00:27]} 37. Re1 {[%clk 0:00:13]}  Rd2 {[%clk 0:00:25]} 38. Kg3 {[%clk 0:00:13]}  Rc8 {[%clk 0:00:24]} 39. Re5 {[%clk 0:00:10]}  Rc3+ {[%clk 0:00:21]} 40. Kg2 {[%clk 0:00:09]}  Nd3+ {[%clk 0:00:20]} 41. Kf3 {[%clk 0:00:06]}  Nxe5+ {[%clk 0:00:20]} 42. Ke4 {[%clk 0:00:07]}  Rdxc2 {[%clk 0:00:20]} 43. fxe5 {[%clk 0:00:06]}  Rxb3 {[%clk 0:00:20]} 44. Kf4 {[%clk 0:00:06]}  Rbc3 {[%clk 0:00:20]} 45. a5 {[%clk 0:00:06]}  Rc4+ {[%clk 0:00:20]} 46. Kg5 {[%clk 0:00:06]}  R2c3 {[%clk 0:00:19]} 47. h4 {[%clk 0:00:06]}  Rg3+ {[%clk 0:00:19]} 48. Kh6 {[%clk 0:00:06]}  Rxh4# {[%clk 0:00:18]} 0-1


[Site "https://www.chess.com"]